bitfinex/quotes_SOLUSD_20250406
["timestamp","ask_amount","ask_price","bid_price","bid_amount"]
[1743936669335,0.0001,119.05,119.04,27.11083357]
[1743936671843,0.0001,119.05,119.04,6.02246157]
[1743936672015,0.0001,119.05,119.04,13.12246157]
[1743936672221,0.0001,119.05,119.04,13.40678471]
[1743936674245,0.0001,119.05,119.04,7.52648471]
[1743936675850,0.0001,119.05,119.04,13.40678471]
[1743936680249,0.0001,119.05,119.04,32.05643357]
[1743936686346,0.0001,119.05,119.04,32.11943357]
[1743936690157,0.040419,119.05,119.04,32.11943357]
[1743936693357,0.040419,119.05,119.04,13.46978471]
[1743936693971,0.040419,119.05,119.04,32.11943357]
[1743936694141,1.9e-05,119.05,119.04,32.11943357]
[1743936694546,1.9e-05,119.05,119.04,13.46978471]
[1743936695759,1.9e-05,119.05,119.04,6.08546157]
[1743936695967,1.9e-05,119.05,119.04,13.18546157]
[1743936696140,1.9e-05,119.05,119.04,7.163]
[1743936696548,1.9e-05,119.05,119.04,0.063]
[1743936699456,0.030019,119.05,119.04,0.063]
[1743936701283,0.030019,119.05,119.04,0.363]
[1743936709088,0.030019,119.05,119.04,6.2433]
[1743936709282,0.030019,119.05,119.04,6.38546157]
[1743936714080,0.030019,119.05,119.04,6.66978471]
[1743936720286,0.030019,119.05,119.04,25.31943357]
[1743936722699,1.9e-05,119.05,119.04,25.31943357]
[1743936724803,1.9e-05,119.05,119.04,32.41943357]
[1743936730707,1.9e-05,119.05,119.04,82.85943357]
[1743936731310,1.9e-05,119.05,119.04,32.41943357]
[1743936740420,1.9e-05,119.05,119.04,13.76978471]
[1743936740631,1.9e-05,119.05,119.04,0.363]
[1743936740989,1.572119,119.05,119.04,0.363]
[1743936742219,1.572119,119.05,119.04,6.2433]
[1743936742599,1.9e-05,119.05,119.04,6.2433]
[1743936742800,1.9e-05,119.05,119.04,6.66978471]
[1743936751619,1.9e-05,119.05,119.04,25.31943357]
[1743936752102,1.9e-05,119.05,119.04,6.66978471]
[1743936754808,1.9e-05,119.06,119.05,0.14216157]
[1743936755015,1.9e-05,119.06,119.05,24.67161043]
[1743936759631,1.9e-05,119.06,119.05,24.95593357]
[1743936761713,1.9e-05,119.08,119.07,0.14216157]
[1743936766132,1.9e-05,119.08,119.07,24.95493357]
[1743936779844,1.9e-05,119.08,119.07,6.30528471]
[1743936780047,1.9e-05,119.08,119.07,5.8788]
[1743936780431,1.9e-05,119.08,119.07,6.02096157]
[1743936784427,1.9e-05,119.08,119.07,13.14096157]
[1743936784628,1.9e-05,119.08,119.07,13.42528471]
[1743936785751,1.9e-05,119.08,119.07,32.07493357]
[1743936789947,1.9e-05,119.08,119.07,13.42528471]
[1743936793857,1.9e-05,119.08,119.07,13.14096157]
[1743936802083,1.9e-05,119.08,119.07,12.9988]
[1743936804080,1.9e-05,119.08,119.06,6.08446157]
[1743936804267,1.527619,119.08,119.06,13.0623]
[1743936805367,1.527619,119.08,119.06,5.9423]
[1743936810682,1.527619,119.08,119.06,0.063]
[1743936810879,7.406019,119.08,119.06,0.063]
[1743936813183,18.64964886,119.07,119.06,0.063]
[1743936814771,24.52844886,119.07,119.06,0.063]
[1743936816466,24.812772,119.07,119.06,0.063]
[1743936816666,32.912372,119.07,119.06,0.063]
[1743936817478,13.9784,119.07,119.06,0.063]
[1743936820383,14.40488471,119.07,119.06,0.063]
[1743936820563,46.17984886,119.05,119.04,0.363]
[1743936820769,46.464172,119.05,119.04,0.363]
[1743936821264,59.05553357,119.05,119.04,0.363]
[1743936821465,0.28432314,119.04,118.99,0.063]
[1743936822289,19.07613357,119.04,118.99,0.063]
[1743936822488,26.0,119.01,118.99,0.063]
[1743936822691,32.5694,119.01,118.99,0.063]
[1743936824181,38.4515,119.01,118.99,0.063]
[1743936824373,32.5694,119.01,118.99,0.063]
[1743936825966,38.4512,119.01,118.99,0.063]
[1743936835493,26.0,119.01,118.99,0.063]
[1743936835788,81.8,119.03,118.99,0.063]
[1743936835979,81.8,119.03,118.99,7.303]
[1743936836176,81.8,119.03,119.0,0.14216157]
[1743936836384,0.03,119.04,119.0,0.14216157]
[1743936838095,0.03,119.04,119.01,5.8818]
[1743936840298,0.03,119.04,119.02,0.14216157]
[1743936842399,0.03,119.04,119.03,5.8808]
[1743936843295,0.03,119.04,119.02,6.02326157]
[1743936844184,0.03,119.04,119.03,7.38216157]
[1743936844495,0.03,119.04,119.03,13.54728471]
[1743936845180,0.03,119.04,119.03,32.19693357]
[1743936848083,0.03,119.04,119.03,13.54728471]
[1743936848581,0.03,119.04,119.03,13.26296157]
[1743936849521,0.03,119.04,119.03,13.54728471]
[1743936857188,1.9e-05,119.08,119.05,0.28432314]
[1743936858208,1.9e-05,119.08,119.07,0.14216157]
[1743936858416,1.9e-05,119.08,119.07,7.38216157]
[1743936859198,1.9e-05,119.08,119.07,7.66648471]
[1743936860415,1.9e-05,119.08,119.07,13.54528471]
[1743936861907,1.9e-05,119.08,119.07,32.19493357]
[1743936872731,793.8122026,119.1,119.07,46.89213357]
[1743936872934,793.8122026,119.1,119.09,26.28432314]
[1743936874345,793.8122026,119.1,119.09,32.16222314]
[1743936877645,793.8122026,119.1,119.09,6.16222314]
[1743936877842,793.8122026,119.1,119.09,32.16222314]
[1743936878550,793.8122026,119.1,119.09,31.8779]
[1743936878737,793.8122026,119.1,119.09,6.02006157]
[1743936880460,793.8122026,119.1,119.08,5.8781]
[1743936880637,793.8122026,119.1,119.08,0.14216157]
[1743936881849,793.8122026,119.1,119.08,6.02046157]
[1743936887952,793.8422026,119.1,119.08,6.02046157]
[1743936891882,793.8422026,119.1,119.09,0.28432314]
[1743936893770,793.8422026,119.1,119.09,6.16222314]
[1743936900782,793.8422026,119.1,119.08,5.8781]
[1743936901673,793.8422026,119.1,119.08,5.9411]
[1743936906073,793.8422026,119.1,119.08,0.063]
[1743936908183,1.5033,119.09,119.08,0.063]
[1743936911784,793.8422026,119.1,119.08,0.063]
[1743936912188,793.8422026,119.1,119.08,5.9414]
[1743936930911,793.8422026,119.1,119.08,0.063]
[1743936942919,793.8422026,119.1,119.08,6.22522314]
[1743936943113,793.8422026,119.1,119.09,0.14216157]
[1743936945439,793.8422026,119.1,119.09,6.02006157]
[1743936947103,793.8422026,119.1,119.08,5.9411]
[1743936947419,793.8422026,119.1,119.08,0.063]
[1743936956134,799.7196026,119.1,119.08,0.063]
[1743936956837,793.8422026,119.1,119.08,0.063]
[1743936982140,795.4125026,119.1,119.08,0.063]
[1743936986969,801.2899026,119.1,119.08,0.063]
[1743936997376,801.2899026,119.1,119.08,0.063]
[1743936997864,795.4125026,119.1,119.08,0.063]
[1743936998065,793.8422026,119.1,119.08,0.063]
[1743937010092,793.8422026,119.1,119.08,5.9414]
[1743937012588,793.8422026,119.1,119.08,0.063]
[1743937023009,793.8422026,119.1,119.09,7.24216157]
[1743937023800,793.8422026,119.1,119.09,13.12006157]
[1743937025799,793.8422026,119.1,119.09,7.1]
[1743937026105,793.8422026,119.1,119.08,0.063]
[1743937028402,801.3071026,119.1,119.08,0.063]
[1743937031501,24.52754886,119.09,119.08,0.063]
[1743937031895,106.32754886,119.09,119.08,0.063]
[1743937033414,100.44964886,119.09,119.08,0.063]
[1743937034911,81.8,119.09,119.08,0.063]
[1743937038814,106.32754886,119.09,119.08,0.063]
[1743937040411,100.44964886,119.09,119.08,0.063]
[1743937041494,125.66964886,119.09,119.08,0.063]
[1743937041691,100.44964886,119.09,119.08,0.063]
[1743937044411,81.8,119.09,119.08,0.063]
[1743937047416,106.32754886,119.09,119.08,0.063]
[1743937053827,50.15403357,119.09,119.08,0.063]
[1743937056023,50.65403357,119.09,119.08,0.063]
[1743937056204,50.15403357,119.09,119.08,0.063]
[1743937056529,50.65403357,119.09,119.08,0.063]
[1743937056825,50.15403357,119.09,119.08,0.063]
[1743937057418,50.65403357,119.09,119.08,0.0001]
[1743937057805,50.15403357,119.09,119.08,0.0001]
[1743937058212,50.011872,119.09,119.08,0.0001]
[1743937060334,50.15403357,119.09,119.08,0.0001]
[1743937085853,50.65403357,119.09,119.08,0.0001]
[1743937086831,50.68403357,119.09,119.08,0.0001]
[1743937087049,50.18403357,119.09,119.08,0.0001]
[1743937087256,50.68403357,119.09,119.08,0.0001]
[1743937093655,50.18403357,119.09,119.08,0.0001]
[1743937093856,50.68403357,119.09,119.08,0.0001]
[1743937095136,125.933872,119.07,119.06,0.063]
[1743937095342,44.133972,119.07,119.06,0.063]
[1743937095657,50.012772,119.07,119.06,0.063]
[1743937097955,24.812772,119.07,119.06,0.063]
[1743937098162,24.95493357,119.07,119.06,0.063]
[1743937098461,24.812772,119.07,119.06,0.063]
[1743937099757,18.64964886,119.07,119.06,0.063]
[1743937103274,36.8,119.08,119.06,0.063]
[1743937104039,0.03,119.09,119.06,0.063]
[1743937104246,0.03,119.09,119.08,1.5891]
[1743937105145,0.03,119.09,119.08,7.4675]
[1743937106442,0.03,119.09,119.08,1.5891]
[1743937107254,0.03,119.09,119.07,6.035]
[1743937112676,0.03,119.09,119.07,11.9137]
[1743937117176,0.03,119.09,119.07,6.035]
[1743937122577,0.03,119.09,119.06,0.063]
[1743937127279,0.03,119.09,119.06,7.163]
[1743937129988,0.03,119.09,119.06,13.0423]
[1743937130382,0.03,119.09,119.06,7.163]
[1743937144877,0.03,119.09,119.06,13.0423]
[1743937145706,0.03,119.09,119.06,7.163]
[1743937152200,0.03,119.09,119.06,13.0423]
[1743937152407,0.03,119.09,119.06,14.5428]
[1743937164811,0.03,119.09,119.08,26.14216157]
[1743937165823,0.03,119.09,119.08,32.02056157]
[1743937172831,0.03,119.09,119.08,31.8784]
[1743937176826,0.03,119.09,119.08,32.30488471]
[1743937177221,0.03,119.09,119.08,32.36788471]
[1743937178610,0.03,119.09,119.08,32.08356157]
[1743937178817,0.03,119.09,119.08,31.9414]
[1743937180631,0.03,119.09,119.08,5.9414]
[1743937181003,0.03,119.09,119.08,26.063]
[1743937181208,0.03,119.09,119.08,0.063]
[1743937182131,0.03,119.09,119.08,0.48948471]
[1743937182617,0.03,119.09,119.08,0.20516157]
[1743937183322,0.03,119.09,119.08,32.08356157]
[1743937185830,0.03,119.09,119.08,0.063]
[1743937207340,81.83,119.09,119.08,0.063]
[1743937207539,83.4065,119.09,119.08,0.063]
[1743937208041,102.05614886,119.09,119.08,0.063]
[1743937208854,107.93404886,119.09,119.08,0.063]
[1743937211551,108.218372,119.09,119.08,0.063]
[1743937211859,114.84593357,119.09,119.08,0.063]
[1743937212437,33.04593357,119.09,119.08,0.063]
[1743937213151,32.903772,119.09,119.08,0.063]
[1743937213351,32.61944886,119.09,119.08,0.063]
[1743937213526,0.03,119.09,119.08,0.063]
[1743937250982,100.47964886,119.09,119.08,0.063]
[1743937262176,81.83,119.09,119.08,0.063]
[1743937263388,0.03,119.09,119.08,0.063]
[1743937280906,0.31432314,119.09,119.08,0.063]
[1743937285886,18.67964886,119.09,119.08,0.063]
[1743937286202,0.03,119.09,119.08,0.063]
[1743937293107,18.67964886,119.09,119.08,0.063]
[1743937293913,18.963972,119.09,119.08,0.063]
[1743937294813,44.79181043,119.07,119.06,0.063]
[1743937295517,70.77613357,119.07,119.06,0.063]
[1743937300218,70.27613357,119.07,119.06,0.063]
[1743937300430,70.77613357,119.07,119.06,0.063]
[1743937300922,76.84813357,119.07,119.06,0.063]
[1743937301925,26.28432314,119.04,119.03,0.063]
[1743937302418,45.07613357,119.04,119.03,0.063]
[1743937302722,52.17613357,119.04,119.03,0.063]
[1743937304921,77.37613357,119.04,119.03,0.063]
[1743937305122,26.0,119.0,118.99,0.063]
[1743937305425,44.933972,119.0,118.99,0.063]
[1743937305638,70.27613357,119.0,118.99,0.063]
[1743937305827,77.37613357,119.0,118.99,0.063]
[1743937306034,78.91873357,119.0,118.99,0.063]
[1743937307123,83.20599037,119.0,118.99,0.063]
[1743937307310,83.70599037,119.0,118.99,0.063]
[1743937307515,25.2,118.98,118.97,0.03]
[1743937307739,44.133972,118.98,118.97,0.03]
[1743937308108,44.27613357,118.98,118.97,0.03]
[1743937319341,44.77613357,118.97,118.95,0.03]
[1743937319541,81.47613357,118.96,118.95,0.03]
[1743937319747,88.57613357,118.96,118.95,0.03]
[1743937321951,81.707,118.94,118.92,0.063]
[1743937322135,81.99132314,118.93,118.92,0.063]
[1743937322315,100.35664886,118.93,118.92,0.063]
[1743937323815,100.640972,118.93,118.92,0.063]
[1743937325235,81.707,118.93,118.92,0.063]
[1743937326723,81.707,118.93,118.91,0.063]
[1743937326724,0.14216157,118.91,118.9,0.03]
[1743937328726,44.77613357,118.91,118.9,0.03]
[1743937328926,44.77613357,118.9,118.88,0.03]
[1743937329931,44.27613357,118.9,118.88,0.03]
[1743937330638,44.933972,118.9,118.88,0.03]
[1743937336647,45.07613357,118.9,118.88,0.03]
[1743937337028,70.77613357,118.9,118.88,0.03]
[1743937339542,107.72432314,118.88,118.87,0.063]
[1743937339736,44.633972,118.88,118.87,0.063]
[1743937343944,44.77613357,118.88,118.87,0.063]
[1743937346444,18.79181043,118.88,118.87,0.063]
[1743937346657,19.07613357,118.88,118.87,0.063]
[1743937348865,44.27613357,118.88,118.87,0.063]
[1743937349372,18.933972,118.88,118.87,0.063]
[1743937349544,18.64964886,118.88,118.87,0.063]
[1743937349746,18.933972,118.88,118.87,0.063]
[1743937349941,44.27613357,118.88,118.87,0.063]
[1743937350553,44.77613357,118.88,118.87,0.063]
[1743937350753,44.27613357,118.88,118.87,0.063]
[1743937350966,44.77613357,118.88,118.87,0.063]
[1743937353368,18.933972,118.88,118.87,0.063]
[1743937353756,18.64964886,118.88,118.87,0.063]
[1743937360055,36.6,118.89,118.87,0.063]
[1743937363782,36.663,118.89,118.87,0.063]
[1743937364877,26.0,118.88,118.87,0.063]
[1743937366879,44.64964886,118.88,118.87,0.063]
[1743937370673,26.0,118.88,118.87,0.063]
[1743937371682,0.063,118.89,118.87,0.063]
[1743937373371,0.063,118.89,118.88,26.14216157]
[1743937374463,0.063,118.89,118.88,26.42648471]
[1743937374864,0.063,118.89,118.88,0.14216157]
[1743937375079,0.063,118.89,118.87,0.063]
[1743937383075,0.063,118.89,118.88,26.14216157]
[1743937383273,0.063,118.89,118.88,45.07613357]
[1743937391884,0.063,118.89,118.88,52.19613357]
[1743937392990,0.063,118.89,118.88,60.13262706]
[1743937393388,0.063,118.89,118.88,68.63696992]
[1743937397913,0.063,118.9,118.89,39.57613357]
[1743937398296,0.063,118.9,118.89,57.05500628]
[1743937398508,1.6152,118.94,118.93,0.14216157]
[1743937398807,1.6337,118.97,118.96,26.0]
[1743937399005,1.6337,118.97,118.96,33.40432314]
[1743937399203,1.6337,118.97,118.96,33.12]
[1743937399597,1.6337,118.97,118.96,31.4534]
[1743937402011,1.6337,118.97,118.96,31.87988471]
[1743937403491,1.6967,118.97,118.96,31.87988471]
[1743937404910,1.6967,118.97,118.95,26.0]
[1743937405208,1.6967,118.97,118.95,33.12]
[1743937405418,6.1669,118.96,118.95,33.12]
[1743937416227,6.1669,118.96,118.95,7.12]
[1743937416422,6.1669,118.96,118.93,0.42648471]
[1743937416605,6.1669,118.96,118.94,7.12]
[1743937416921,6.1669,118.96,118.93,7.12]
[1743937417317,6.1669,118.96,118.92,0.28432314]
[1743937417515,6.1669,118.96,118.93,7.12]
[1743937418829,6.1669,118.96,118.94,0.42648471]
[1743937425807,6.1669,118.96,118.95,7.1]
[1743937427429,1.6967,118.97,118.95,7.1]
[1743937427933,0.063,118.96,118.95,7.1]
[1743937428149,0.063,118.96,118.95,7.52648471]
[1743937433161,0.063,118.96,118.95,26.17613357]
[1743937433945,0.063,118.96,118.95,46.17613357]
[1743937435448,0.063,118.96,118.95,54.11262706]
[1743937435658,0.063,118.96,118.95,53.61262706]
[1743937435826,0.063,118.96,118.95,54.11262706]
[1743937436657,0.063,118.96,118.95,53.61262706]
[1743937437027,0.063,118.96,118.95,33.61262706]
[1743937441357,0.063,118.96,118.95,33.64262706]
[1743937444344,0.063,118.96,118.95,53.64262706]
[1743937444740,0.063,118.96,118.95,54.14262706]
[1743937445242,0.063,118.96,118.95,203.59011724]
[1743937445556,0.063,118.96,118.95,205.12737779]
[1743937447657,0.063,119.0,118.99,45.07613357]
[1743937447843,0.063,119.0,118.99,52.17613357]
[1743937457656,0.063,119.0,118.97,0.28432314]
[1743937457839,0.063,119.0,118.99,25.74964886]
[1743937458640,0.063,119.0,118.99,7.52648471]
[1743937463163,0.063,119.0,118.96,24.07398367]
[1743937463364,0.063,119.0,118.95,0.03]
[1743937463569,0.063,119.0,118.96,7.1]
[1743937466766,0.063,119.0,118.96,26.0]
[1743937466944,0.063,119.0,118.97,7.1]
[1743937480876,0.063,119.0,118.97,7.13]
[1743937487675,0.063,119.0,118.99,0.14216157]
[1743937490073,0.063,119.0,118.99,0.42648471]
[1743937494372,0.063,119.0,118.99,39.07613357]
[1743937496583,0.063,119.0,118.99,39.57613357]
[1743937498167,0.063,119.0,118.99,106.62331196]
[1743937498398,0.063,119.0,118.99,115.59654923]
[1743937499592,0.063,119.0,118.99,64.68654923]
[1743937499793,0.063,119.0,118.99,34.8650477]
[1743937499998,0.063,119.0,118.99,85.57937084]
[1743937500292,0.063,119.0,118.99,106.07937084]
[1743937500499,0.063,119.0,118.99,114.21220637]
[1743937501093,0.063,119.0,118.99,122.21654923]
[1743937501790,0.063,119.0,118.99,71.78654923]
[1743937503686,0.063,119.0,118.99,72.28654923]
[1743937503996,0.063,119.0,118.99,71.78654923]
[1743937504196,0.063,119.0,118.99,72.28654923]
[1743937504892,0.063,119.0,118.99,122.71654923]
[1743937506703,0.063,119.0,118.99,122.21654923]
[1743937506998,0.063,119.0,118.99,122.71654923]
[1743937507701,0.063,119.0,118.99,122.21654923]
[1743937507889,0.063,119.0,118.99,122.71654923]
[1743937508214,0.063,119.0,118.99,122.21654923]
[1743937508498,0.063,119.0,118.99,44.40222609]
[1743937508803,0.063,119.0,118.99,51.78654923]
[1743937510404,0.063,119.0,118.99,44.68654923]
[1743937510588,0.063,119.0,118.99,18.79181043]
[1743937510794,0.063,119.0,118.99,25.89181043]
[1743937510995,0.063,119.0,118.99,26.17613357]
[1743937516500,0.063,119.0,118.99,34.68047643]
[1743937516703,0.063,119.0,118.99,35.18047643]
[1743937518000,0.063,119.0,118.99,43.31331196]
[1743937520801,0.063,119.0,118.99,50.74980545]
[1743937522708,0.063,119.0,118.99,101.17980545]
[1743937523696,0.063,119.0,118.99,100.67980545]
[1743937528516,0.063,119.0,118.99,50.24980545]
[1743937535524,0.063,119.0,118.99,42.11696992]
[1743937536221,0.063,119.0,118.99,35.01696992]
[1743937536419,0.063,119.0,118.99,42.11696992]
[1743937559820,0.063,119.0,118.99,50.24980545]
[1743937561950,0.063,119.0,118.99,33.61262706]
[1743937562742,0.063,119.0,118.99,7.57865506]
[1743937562940,0.063,119.0,118.99,7.1]
[1743937566235,0.063,119.0,118.98,7.1]
[1743937573677,0.063,119.0,118.99,0.42648471]
[1743937578256,0.063,119.0,118.98,7.1]
[1743937579874,0.063,119.0,118.99,19.07613357]
[1743937594697,0.063,119.0,118.99,19.07613357]
[1743937598484,0.063,119.0,118.99,28.06332706]
[1743937599374,0.063,119.0,118.99,65.20050545]
[1743937601368,0.063,119.0,118.99,108.19401196]
[1743937601575,0.063,119.0,118.99,115.63050545]
[1743937601898,0.063,119.0,118.99,108.19401196]
[1743937602091,0.063,119.0,118.99,107.69401196]
[1743937602482,0.063,119.0,118.99,57.26401196]
[1743937603383,0.063,119.0,118.99,18.79181043]
[1743937603583,0.063,119.0,118.99,25.89181043]
[1743937603792,0.063,119.0,118.99,26.17613357]
[1743937605204,0.063,119.0,118.99,7.52648471]
[1743937605702,0.063,119.0,118.99,7.24216157]
[1743937606307,0.063,119.0,118.99,7.1]
[1743937607099,0.063,119.0,118.97,0.45648471]
[1743937607285,0.063,119.0,118.98,7.1]
[1743937613508,0.063,119.0,118.97,0.03]
[1743937613679,0.063,119.0,118.98,7.1]
[1743937614096,6.3949,118.99,118.98,7.1]
[1743937616705,6.3949,118.99,118.97,0.03]
[1743937621606,7.9698,118.99,118.97,0.03]
[1743937622399,81.8,118.98,118.97,0.03]
[1743937624920,100.44964886,118.98,118.97,0.03]
[1743937625785,100.44964886,118.98,118.96,0.03]
[1743937626015,81.8,118.97,118.96,0.03]
[1743937626182,100.44964886,118.97,118.96,0.03]
[1743937627710,102.01674886,118.97,118.96,0.03]
[1743937631916,20.21674886,118.97,118.96,0.03]
[1743937633611,20.64323357,118.97,118.96,0.03]
[1743937633819,26.73143357,118.97,118.96,0.03]
[1743937634513,51.94143357,118.97,118.96,0.03]
[1743937636399,52.44143357,118.97,118.96,0.03]
[1743937637097,52.44143357,118.97,118.95,0.03]
[1743937637098,18.79181043,118.96,118.95,0.03]
[1743937640216,18.64964886,118.96,118.95,0.03]
[1743937646131,18.933972,118.96,118.95,0.03]
[1743937647243,19.07613357,118.96,118.95,0.03]
[1743937650135,18.933972,118.96,118.95,0.03]
[1743937650337,18.64964886,118.96,118.95,0.03]
[1743937650636,18.71264886,118.96,118.95,0.03]
[1743937676561,0.34732314,118.96,118.95,0.03]
[1743937676737,19.13913357,118.96,118.95,0.03]
[1743937681267,18.64964886,118.91,118.88,0.03]
[1743937685069,81.8,118.9,118.88,0.03]
[1743937687074,89.04216157,118.89,118.88,0.03]
[1743937687258,0.28432314,118.88,118.87,0.063]
[1743937694982,7.1,118.89,118.87,0.063]
[1743937697102,26.0,118.88,118.87,0.063]
[1743937702188,81.8,118.91,118.87,0.063]
[1743937702393,81.8,118.9,118.87,0.063]
[1743937703312,0.063,118.88,118.87,0.063]
[1743937705515,0.063,118.88,118.87,1.5797]
[1743937716494,0.063,118.88,118.87,0.063]
[1743937719730,0.063,118.88,118.87,1.6499]
[1743937723511,0.063,118.88,118.87,1.6499]
[1743937726030,0.063,118.88,118.87,0.063]
[1743937741340,0.063,118.88,118.87,8.7013]
[1743937743943,0.063,118.88,118.87,0.063]
[1743937745743,0.063,118.88,118.87,7.163]
[1743937759656,0.063,118.88,118.87,0.063]
[1743937763758,33.6503,118.88,118.87,0.063]
[1743937763932,51.93643357,118.88,118.87,0.063]
[1743937766731,51.93643357,118.88,118.85,0.03]
[1743937766965,0.28432314,118.86,118.85,0.03]
[1743937767970,7.07027134,118.86,118.85,0.03]
[1743937768260,0.28432314,118.86,118.85,0.03]
[1743937769357,0.42648471,118.86,118.85,0.03]
[1743937770035,26.0,118.81,118.76,0.03]
[1743937770242,52.853972,118.81,118.76,0.03]
[1743937770752,78.20613357,118.81,118.76,0.03]
[1743937772069,52.20613357,118.81,118.76,0.03]
[1743937772672,52.063972,118.81,118.76,0.03]
[1743937773469,59.36613357,118.81,118.76,0.03]
[1743937773649,44.64964886,118.78,118.76,0.03]
[1743937774064,26.0,118.78,118.76,0.03]
[1743937776757,44.64964886,118.78,118.76,0.03]
[1743937776956,44.64964886,118.71,118.7,0.040398]
[1743937777157,44.64964886,118.71,118.65,1.664]
[1743937778182,0.28432314,118.7,118.65,1.664]
[1743937778352,0.28432314,118.7,118.61,68.33818493]
[1743937778548,0.28432314,118.7,118.65,0.03]
[1743937780573,44.64964886,118.71,118.65,0.03]
[1743937784271,81.8,118.69,118.65,0.03]
[1743937786976,26.0,118.66,118.65,0.03]
[1743937788177,44.64964886,118.66,118.65,0.03]
[1743937788572,26.0,118.66,118.65,0.03]
[1743937788770,26.0,118.65,118.59,8.2989]
[1743937789981,81.8,118.69,118.6,19.07613357]
[1743937790159,81.8,118.68,118.6,19.07613357]
[1743937793577,81.8,118.68,118.6,0.42648471]
[1743937795485,81.8,118.68,118.6,0.45648471]
[1743937795885,81.8,118.68,118.6,19.10613357]
[1743937797398,81.8,118.68,118.6,0.45648471]
[1743937799784,18.64964886,118.67,118.6,0.03]
[1743937800181,81.8,118.66,118.6,0.03]
[1743937800374,81.8,118.65,118.6,0.03]
[1743937803184,18.64964886,118.64,118.6,0.03]
[1743937803872,81.8,118.65,118.6,0.03]
[1743937804786,81.8,118.64,118.6,0.03]
[1743937805669,81.8,118.64,118.6,0.45648471]
[1743937805868,81.8,118.64,118.61,7.2]
[1743937809089,81.863,118.7,118.62,0.42648471]
[1743937809390,81.8,118.69,118.62,0.42648471]
[1743937811292,81.8,118.69,118.61,7.2]
[1743937814591,18.64964886,118.68,118.61,7.2]
[1743937815899,81.8,118.67,118.61,7.2]
[1743937816197,81.8,118.66,118.61,7.2]
[1743937820703,81.863,118.66,118.61,7.2]
[1743937822204,81.863,118.66,118.6,7.63648471]
[1743937823100,81.863,118.66,118.6,7.21]
[1743937825802,81.863,118.66,118.6,0.03]
[1743937826100,81.863,118.66,118.6,7.19]
[1743937837109,81.8,118.65,118.6,7.19]
[1743937837312,81.8,118.65,118.6,0.03]
[1743937837806,18.64964886,118.64,118.6,0.03]
[1743937838020,81.8,118.63,118.6,0.03]
[1743937839818,81.8,118.62,118.6,0.03]
[1743937840601,18.64964886,118.61,118.6,0.03]
[1743937842211,0.42648471,118.61,118.6,0.03]
[1743937842425,19.07613357,118.61,118.6,0.03]
[1743937847132,44.37613357,118.61,118.6,0.03]
[1743937850435,7.16,118.62,118.6,0.03]
[1743937850621,36.6,118.63,118.6,0.03]
[1743937850932,26.0,118.61,118.6,0.03]
[1743937853239,36.6,118.63,118.6,0.03]
[1743937856729,18.933972,118.62,118.6,0.03]
[1743937857921,26.0,118.61,118.6,0.03]
[1743937859336,0.063,118.66,118.6,0.03]
[1743937859536,18.71264886,118.66,118.6,0.03]
[1743937860227,0.063,118.61,118.6,0.03]
[1743937863117,26.063,118.61,118.6,0.03]
[1743937868345,70.43913357,118.61,118.6,0.03]
[1743937873254,70.93913357,118.61,118.6,0.03]